bitfinex-derivatives/quotes_BTCF0:USTF0_20260214
["timestamp","ask_amount","ask_price","bid_price","bid_amount"]
[1771080691771,0.0144,69741.0,69730.0,0.028745]
[1771080692473,0.014344,69740.0,69730.0,0.0144]
[1771080694076,0.014344,69739.0,69730.0,0.0144]
[1771080694377,0.014344,69736.0,69730.0,0.0144]
[1771080694682,0.014344,69737.0,69730.0,0.0144]
[1771080695672,0.014344,69738.0,69730.0,0.0144]
[1771080696072,0.014338,69768.0,69746.0,0.22091644]
[1771080696373,5.2e-07,69763.0,69747.0,0.15788]
[1771080696575,0.23161852,69762.0,69748.0,0.15788]
[1771080696769,0.0144,69763.0,69748.0,0.15788]
[1771080696968,0.24601852,69763.0,69749.0,0.0144]
[1771080697168,0.014339,69762.0,69750.0,0.0144]
[1771080697369,0.014339,69762.0,69751.0,0.0144]
[1771080697768,0.028739,69763.0,69751.0,0.0144]
[1771080697976,0.0144,69763.0,69751.0,0.0144]
[1771080698172,0.014336,69776.0,69751.0,0.0144]
[1771080698173,0.21727952,69780.0,69759.0,0.22091644]
[1771080698381,0.21727952,69780.0,69749.0,0.014342]
[1771080698382,0.014337,69770.0,69760.0,0.0144]
[1771080698578,0.23167952,69772.0,69760.0,0.0144]
[1771080698983,0.24601652,69772.0,69760.0,0.0144]
[1771080699376,0.014337,69771.0,69760.0,0.0144]
[1771080699775,0.21727952,69767.0,69757.0,0.0144]
[1771080699971,0.23167952,69767.0,69757.0,0.0144]
[1771080700279,0.014339,69762.0,69754.0,0.0144]
[1771080700474,0.014339,69762.0,69746.0,0.014342]
[1771080700681,0.22517382,69763.0,69750.0,0.014341]
[1771080701075,0.0144,69763.0,69750.0,0.014341]
[1771080701277,0.0144,69763.0,69753.0,0.014341]
[1771080701573,0.0144,69765.0,69752.0,0.0144]
[1771080701775,0.0144,69765.0,69752.0,0.028741]
[1771080701975,0.0144,69765.0,69753.0,0.014341]
[1771080702171,0.2005,85430.0,69753.0,0.014341]
[1771080702172,0.014337,69773.0,69754.0,0.01434]
[1771080702377,0.014338,69767.0,69752.0,0.028741]
[1771080702570,0.014338,69767.0,69752.0,0.0144]
[1771080702773,0.014338,69768.0,69752.0,0.0144]
[1771080702975,0.014338,69768.0,69752.0,0.028741]
[1771080703170,0.21077382,69770.0,69752.0,0.028741]
[1771080703171,0.014338,69769.0,69753.0,0.014341]
[1771080703483,0.22511182,69766.0,69752.0,0.0144]
[1771080703685,0.21077382,69766.0,69752.0,0.0144]
[1771080703979,0.21077382,69766.0,69753.0,0.0144]
[1771080704280,0.23951082,69770.0,69754.0,0.014341]
[1771080704481,0.23951082,69770.0,69755.0,0.01434]
[1771080705782,0.22517382,69770.0,69755.0,0.01434]
[1771080706285,0.0144,69770.0,69755.0,0.01434]
[1771080706585,0.0144,69769.0,69755.0,0.01434]
[1771080707082,0.014337,69773.0,69753.0,0.028741]
[1771080707083,0.21077382,69786.0,69760.0,0.21330953]
[1771080707381,0.014335,69780.0,69765.0,0.014338]
[1771080707583,0.014335,69780.0,69766.0,0.172218]
[1771080707885,0.014335,69781.0,69767.0,0.21330953]
[1771080708183,0.23954882,69780.0,69768.0,0.01444]
[1771080708584,0.00071705,69778.0,69768.0,0.01444]
[1771080708786,0.014337,69774.0,69768.0,4e-05]
[1771080709088,0.21077382,69766.0,69759.0,0.01444]
[1771080709281,0.22521382,69766.0,69756.0,0.15792]
[1771080709585,0.01444,69766.0,69756.0,0.15792]
[1771080710183,0.14348,69771.0,69758.0,0.01434]
[1771080710377,0.14348,69771.0,69757.0,0.01434]
[1771080710574,0.01444,69770.0,69756.0,0.17226]
[1771080710883,0.14348,69775.0,69764.0,0.22764753]
[1771080711083,0.01444,69778.0,69768.0,0.21330953]
[1771080711280,0.01444,69779.0,69768.0,0.21330953]
[1771080711485,0.01444,69779.0,69766.0,0.014338]
[1771080711883,0.01444,69779.0,69768.0,0.22764753]
[1771080712083,0.01444,69779.0,69769.0,0.22764753]
[1771080712286,0.014333,69790.0,69772.0,0.014337]
[1771080712577,0.014334,69787.0,69773.0,0.01444]
[1771080712781,0.014334,69785.0,69774.0,0.01444]
[1771080712990,0.014335,69781.0,69774.0,0.01444]
[1771080713183,0.014334,69787.0,69774.0,0.01444]
[1771080713489,0.014335,69784.0,69770.0,0.014337]
[1771080713789,0.014334,69785.0,69771.0,0.172217]
[1771080713979,0.014334,69786.0,69771.0,0.172217]
[1771080714178,0.014334,69785.0,69771.0,0.15788]
[1771080714586,0.014334,69784.0,69771.0,0.15788]
[1771080715089,0.14344,69791.0,69775.0,0.21330953]
[1771080715282,0.14415705,69791.0,69776.0,0.22774953]
[1771080715482,0.014333,69790.0,69776.0,0.22774953]
[1771080715792,0.00071705,69788.0,69776.0,0.22774953]
[1771080716183,0.00071705,69787.0,69776.0,0.22774953]
[1771080716384,0.014333,69790.0,69776.0,0.22774953]
[1771080716586,0.014333,69790.0,69776.0,0.24208553]
[1771080716789,0.00071705,69788.0,69776.0,0.24208553]
[1771080717177,0.00071705,69787.0,69776.0,0.24208553]
[1771080717383,0.014333,69790.0,69776.0,0.24208553]
[1771080717791,0.00071705,69788.0,69776.0,0.24208553]
[1771080718183,0.00071705,69787.0,69776.0,0.24208553]
[1771080718480,0.014333,69790.0,69776.0,0.24208553]
[1771080718682,0.00071705,69788.0,69776.0,0.24208553]
[1771080718888,0.00071705,69788.0,69776.0,0.22774953]
[1771080719087,0.014333,69790.0,69776.0,0.24208553]
[1771080719292,0.00071705,69788.0,69776.0,0.24208553]
[1771080719787,0.00071705,69787.0,69776.0,0.24208553]
[1771080720091,0.014333,69790.0,69776.0,0.22774953]
[1771080720290,0.00071705,69787.0,69776.0,0.22774953]
[1771080720689,0.00071705,69786.0,69776.0,0.22774953]
[1771080720891,0.014333,69790.0,69776.0,0.24208553]
[1771080721086,0.157773,69791.0,69777.0,0.014336]
[1771080721288,0.014329,69809.0,69776.0,0.22774953]
[1771080721289,0.34834146,69798.0,69778.0,0.21406954]
[1771080721484,0.014333,69792.0,69779.0,0.21406954]
[1771080721687,0.014333,69791.0,69780.0,0.0144]
[1771080721888,0.21368232,69788.0,69779.0,0.0144]
[1771080722193,0.014334,69786.0,69778.0,0.0144]
[1771080722391,0.014334,69787.0,69778.0,0.0144]
[1771080722592,0.014334,69787.0,69773.0,0.22840654]
[1771080722781,0.01505105,69786.0,69774.0,0.15784]
[1771080722986,0.014334,69786.0,69774.0,0.15784]
[1771080723188,0.00071705,69784.0,69774.0,0.15784]
[1771080723383,0.0144,69792.0,69775.0,0.21406954]
[1771080723589,0.028733,69792.0,69777.0,0.014336]
[1771080723784,0.00071705,69788.0,69778.0,0.0144]
[1771080723993,0.028733,69792.0,69778.0,0.028736]
[1771080724294,0.0144,69792.0,69784.0,0.21406954]
[1771080724496,0.0144,69792.0,69784.0,0.22846954]
[1771080724690,0.00071705,69790.0,69784.0,0.22846954]
[1771080724891,0.15784,69797.0,69784.0,0.22846954]
[1771080725095,0.15784,69797.0,69785.0,0.22840354]
[1771080725282,0.00071705,69794.0,69784.0,0.0144]
[1771080725487,0.22801532,69792.0,69784.0,0.0144]
[1771080725686,0.014335,69782.0,69775.0,0.1434]
[1771080725887,0.014334,69785.0,69776.0,0.0144]
[1771080726286,0.014334,69785.0,69769.0,0.21406954]
[1771080726287,0.22801632,69785.0,69765.0,0.21406954]
[1771080726489,0.22801732,69782.0,69764.0,0.0144]
[1771080726792,0.014336,69779.0,69764.0,0.028739]
[1771080726994,0.22808232,69782.0,69767.0,0.014338]
[1771080727294,0.00071705,69780.0,69768.0,0.0144]
[1771080727691,0.00071705,69777.0,69768.0,0.0144]
[1771080727999,0.0144,69782.0,69770.0,0.21406954]
[1771080728197,0.00071705,69781.0,69772.0,0.22840654]
[1771080728396,0.0144,69782.0,69773.0,0.0144]
[1771080728696,0.028734,69786.0,69773.0,0.0144]
[1771080728898,0.014335,69784.0,69773.0,0.0144]
[1771080729097,0.0144,69786.0,69773.0,0.0144]
[1771080729294,0.00071705,69783.0,69773.0,0.0144]
[1771080729494,0.00071705,69783.0,69773.0,0.22846954]
[1771080729800,0.00071705,69782.0,69777.0,0.014336]
[1771080729999,0.0144,69789.0,69778.0,0.0144]
[1771080730297,0.00071705,69785.0,69778.0,0.0144]
[1771080730601,0.0144,69789.0,69782.0,0.21406954]
[1771080730896,0.1434,69792.0,69783.0,0.028734]
[1771080731191,0.0144,69798.0,69788.0,0.22840254]
[1771080731391,0.1434,69801.0,69789.0,0.22846954]
[1771080731596,0.1434,69801.0,69789.0,0.24280254]
[1771080731898,0.1434,69801.0,69789.0,0.22846954]
[1771080732199,0.1434,69801.0,69789.0,0.24280254]
[1771080732599,0.27981464,69814.0,69790.0,0.21406954]
[1771080732794,0.27981464,69814.0,69789.0,0.0144]
[1771080732795,0.014329,69810.0,69794.0,0.21406954]
[1771080732995,0.0144,69811.0,69797.0,0.21406954]
[1771080733701,0.014329,69809.0,69797.0,0.35746954]
[1771080733902,0.014328,69814.0,69800.0,0.21406954]
[1771080734100,0.014328,69814.0,69801.0,0.0144]
[1771080734301,0.014328,69816.0,69801.0,0.028731]
[1771080734499,0.014328,69816.0,69802.0,0.21406954]
[1771080735002,0.014328,69815.0,69802.0,0.21406954]
[1771080735199,0.014326,69827.0,69812.0,0.014329]
[1771080735503,0.00071599,69833.0,69820.0,0.21406954]
[1771080735802,0.00071599,69833.0,69815.0,0.21406954]
[1771080735803,0.014325,69829.0,69815.0,0.21406954]
[1771080736103,0.014326,69825.0,69811.0,0.21406954]
[1771080736405,0.014327,69822.0,69812.0,0.15784]
[1771080736705,0.014327,69822.0,69813.0,0.01444]
[1771080737202,0.014326,69823.0,69813.0,0.01444]
[1771080737499,0.22800832,69826.0,69813.0,0.01444]
[1771080737799,0.21368232,69826.0,69813.0,0.01444]
[1771080738002,0.028765,69830.0,69814.0,0.21406954]
[1771080738204,0.014326,69827.0,69814.0,0.21406954]
[1771080738598,0.014326,69826.0,69814.0,0.21406954]
[1771080739001,0.014326,69827.0,69813.0,0.01444]
[1771080739506,0.014326,69826.0,69813.0,0.01444]
[1771080739704,0.014326,69826.0,69814.0,0.1578]
[1771080739904,0.22872231,69833.0,69815.0,0.014328]
[1771080740199,0.01503999,69833.0,69817.0,0.22839754]
[1771080740403,0.01503999,69833.0,69797.0,0.014332]
[1771080740404,0.22808232,69832.0,69811.0,0.21406954]
[1771080740604,0.22808232,69832.0,69790.0,0.014333]
[1771080740605,0.014326,69825.0,69812.0,0.15776]
[1771080740798,0.014326,69826.0,69812.0,0.15776]
[1771080740799,0.014326,69826.0,69813.0,0.14336]
[1771080740998,0.014325,69828.0,69813.0,0.14336]
[1771080741199,0.014326,69827.0,69813.0,0.14336]
[1771080741400,0.014326,69824.0,69813.0,0.14336]
[1771080741601,0.014326,69825.0,69813.0,0.14336]
[1771080742108,0.028726,69827.0,69813.0,0.14336]
[1771080742303,0.014326,69826.0,69813.0,0.14336]
[1771080742809,0.028726,69827.0,69814.0,0.21406954]
[1771080743000,0.028726,69827.0,69813.0,0.14336]
[1771080743001,0.0144,69827.0,69817.0,0.014328]
[1771080743307,0.0144,69827.0,69818.0,0.22846954]
[1771080743500,0.0144,69831.0,69819.0,0.0144]
[1771080743698,0.014325,69831.0,69819.0,0.0144]
[1771080743902,0.014326,69828.0,69820.0,0.0144]
[1771080744301,0.014326,69827.0,69820.0,0.0144]
[1771080744500,0.014326,69826.0,69820.0,0.0144]
[1771080744695,0.014325,69828.0,69820.0,0.0144]
[1771080744901,0.014326,69827.0,69820.0,0.0144]
[1771080745304,0.0144,69831.0,69816.0,0.14336]
[1771080745606,0.014326,69825.0,69816.0,0.14336]
[1771080746504,0.014328,69816.0,69805.0,0.21406954]
[1771080746711,0.014327,69820.0,69806.0,0.22846954]
[1771080747010,0.014327,69819.0,69806.0,0.22846954]
[1771080747409,0.014327,69820.0,69806.0,0.22846954]
[1771080747708,0.014327,69821.0,69806.0,0.24279954]
[1771080747911,0.014327,69820.0,69806.0,0.22846954]
[1771080748612,0.014328,69818.0,69806.0,0.22846954]
[1771080749611,0.014327,69821.0,69806.0,0.24279954]
[1771080749813,0.014327,69820.0,69806.0,0.22846954]
[1771080750111,0.028654,69820.0,69806.0,0.22846954]
[1771080750411,0.014327,69819.0,69806.0,0.22846954]
[1771080750814,0.014327,69820.0,69806.0,0.22846954]
[1771080751412,0.028726,69824.0,69809.0,0.21130598]
[1771080751610,0.0144,69824.0,69811.0,0.21130598]
[1771080751810,0.14336,69825.0,69813.0,0.21130598]
[1771080751811,0.157686,69825.0,69813.0,0.21130598]
[1771080752111,0.157686,69825.0,69814.0,0.21130598]
[1771080752305,0.14336,69825.0,69815.0,0.22570598]
[1771080754817,0.014326,69826.0,69815.0,0.22570598]
[1771080755114,0.028726,69828.0,69815.0,0.22570598]
[1771080755312,0.014326,69827.0,69815.0,0.22570598]
[1771080755512,0.028725,69828.0,69815.0,0.22570598]
[1771080755918,0.014326,69827.0,69815.0,0.22570598]
[1771080756721,0.0144,69829.0,69815.0,0.22570598]
[1771080757014,0.028725,69831.0,69817.0,0.21130598]
[1771080757219,0.028725,69831.0,69819.0,0.21130598]
[1771080757425,0.014325,69829.0,69819.0,0.21130598]
[1771080757721,0.04305,69831.0,69819.0,0.21130598]
[1771080757916,0.014325,69830.0,69819.0,0.21130598]
[1771080758308,0.0144,69831.0,69819.0,0.21130598]
[1771080758513,0.00071599,69833.0,69822.0,0.21130598]
[1771080758710,0.01511599,69833.0,69823.0,0.0144]
[1771080759017,0.01503999,69833.0,69823.0,0.0144]
[1771080759320,0.00071599,69833.0,69823.0,0.0144]
[1771080759817,0.00071599,69833.0,69826.0,0.014326]
[1771080760024,0.014323,69840.0,69827.0,0.22570598]
[1771080760411,0.014323,69839.0,69828.0,0.23374257]
[1771080760614,0.014319,69860.0,69840.0,0.21934257]
[1771080760928,0.01432,69855.0,69841.0,0.0144]
[1771080761120,0.014321,69850.0,69842.0,0.0144]
[1771080761317,0.014321,69850.0,69826.0,0.014326]
[1771080761318,0.21973923,69838.0,69825.0,0.14336]
[1771080761518,0.21973923,69838.0,69826.0,0.0144]
[1771080761722,0.028723,69839.0,69827.0,0.0144]
[1771080762022,0.014323,69838.0,69827.0,0.0144]
[1771080762218,0.01432,69854.0,69829.0,0.21934257]
[1771080762428,0.014323,69843.0,69829.0,0.21934257]
[1771080762718,0.15772,69857.0,69829.0,0.21934257]
[1771080762719,0.01444,69851.0,69829.0,0.21934257]
[1771080762923,0.01444,69851.0,69827.0,0.0144]
[1771080762924,0.014321,69849.0,69836.0,0.21934257]
[1771080763117,0.01432369,69850.0,69837.0,0.24810557]
[1771080763318,0.014321,69849.0,69837.0,0.21934257]
[1771080763517,0.014322,69847.0,69838.0,0.01444]
[1771080763723,0.014322,69843.0,69828.0,0.014325]
[1771080763926,0.21973923,69845.0,69829.0,0.15776]
[1771080764222,0.01432369,69844.0,69831.0,0.23366757]
[1771080764420,0.01432369,69844.0,69835.0,0.21934257]
[1771080764626,0.014321,69852.0,69837.0,0.21934257]
[1771080764920,0.014322,69847.0,69838.0,0.15776]
[1771080765123,0.014321,69848.0,69838.0,0.15776]
[1771080765328,0.21973923,69846.0,69833.0,0.01444]
[1771080765526,0.014322,69845.0,69833.0,0.01444]
[1771080765826,0.01444,69847.0,69833.0,0.23378257]
[1771080765827,0.158641,69842.0,69833.0,0.23378257]
[1771080766120,0.01444,69847.0,69837.0,0.014324]
[1771080766326,0.014322,69845.0,69838.0,0.01444]
[1771080766521,0.014322,69847.0,69832.0,0.21934257]
[1771080766727,0.014322,69844.0,69832.0,0.21934257]
[1771080766927,0.014322,69844.0,69830.0,0.014325]
[1771080767127,0.014322,69844.0,69833.0,0.37706257]
[1771080767423,0.014322,69844.0,69834.0,0.37706257]
[1771080767626,0.014322,69845.0,69835.0,0.0144]
[1771080767822,0.21973923,69847.0,69821.0,0.21934257]
[1771080768123,0.014322,69843.0,69827.0,0.014326]
[1771080768334,0.014323,69838.0,69828.0,0.0144]
[1771080768528,0.0144,69842.0,69828.0,0.23374257]
[1771080768730,0.0144,69842.0,69832.0,0.21934257]
[1771080769034,0.157642,69846.0,69834.0,0.21934257]
[1771080769229,0.014321,69849.0,69836.0,0.21934257]
[1771080769436,0.014322,69846.0,69838.0,0.21934257]
[1771080770135,0.172963,69845.0,69831.0,0.23366757]
[1771080770329,0.014322,69847.0,69836.0,0.21934257]
[1771080770536,0.014322,69846.0,69837.0,0.0144]
[1771080770733,0.14332,69855.0,69837.0,0.23374257]
[1771080770937,0.014322,69845.0,69832.0,0.21934257]
[1771080771235,0.014322,69844.0,69833.0,0.15772]
[1771080771438,0.014323,69842.0,69834.0,0.0144]
[1771080771632,0.014323,69841.0,69834.0,0.0144]
[1771080771937,0.014323,69841.0,69832.0,0.14332]
[1771080772129,0.014323,69841.0,69833.0,0.0144]
[1771080772633,0.014323,69839.0,69823.0,0.21934257]
[1771080772831,0.014324,69837.0,69824.0,0.172046]
[1771080773031,0.014324,69836.0,69825.0,0.21934257]
[1771080773533,0.21973923,69834.0,69812.0,0.21934257]
[1771080773733,0.23406423,69830.0,69813.0,0.0144]
[1771080773927,0.0144,69829.0,69815.0,0.21934257]
[1771080774135,0.014325,69832.0,69820.0,0.21934257]
[1771080774336,0.172966,69832.0,69821.0,0.23374257]
[1771080774832,0.0144,69835.0,69825.0,0.21934257]
[1771080775028,0.158641,69834.0,69826.0,0.0144]
[1771080775337,0.0144,69836.0,69826.0,0.0144]
[1771080775638,0.014324,69836.0,69826.0,0.0144]
[1771080775833,0.014324,69834.0,69818.0,0.21934257]
[1771080776035,0.014324,69833.0,69820.0,0.014327]
[1771080776338,0.014325,69833.0,69821.0,0.014327]
[1771080776635,0.014325,69833.0,69822.0,0.014327]
[1771080776836,0.158641,69833.0,69823.0,0.0144]
[1771080777037,0.014324,69834.0,69823.0,0.0144]
[1771080777339,0.158641,69832.0,69825.0,0.014326]
[1771080777635,0.014325,69829.0,69823.0,0.0144]
[1771080777837,0.014325,69830.0,69824.0,0.01444]
[1771080778036,0.23406423,69831.0,69822.0,0.01444]
[1771080778236,0.014325,69829.0,69822.0,0.01444]
[1771080778430,0.014325,69830.0,69822.0,0.01444]
[1771080778635,0.014325,69833.0,69822.0,0.01444]
[1771080778835,0.158641,69830.0,69822.0,0.01444]
[1771080779036,0.014325,69830.0,69822.0,0.01444]
[1771080779333,0.158641,69827.0,69822.0,0.01444]
[1771080779533,0.014325,69830.0,69822.0,0.01444]
[1771080779735,0.158641,69827.0,69822.0,0.01444]
[1771080780133,0.028765,69832.0,69822.0,0.01444]
[1771080780334,0.158641,69828.0,69822.0,0.01444]
[1771080780535,0.014323,69840.0,69828.0,0.014325]
[1771080780736,0.014322,69843.0,69829.0,0.23378257]
[1771080780937,0.014323,69839.0,69829.0,0.01444]
[1771080781235,0.014324,69837.0,69821.0,0.014327]
[1771080781440,0.01444,69840.0,69822.0,0.15776]
[1771080781441,0.22124446,69839.0,69822.0,0.15776]
[1771080781639,0.014324,69835.0,69823.0,0.01444]
[1771080781836,0.158641,69835.0,69823.0,0.01444]
[1771080782039,0.014326,69828.0,69824.0,0.01444]
[1771080782234,0.014326,69828.0,69823.0,0.01444]
[1771080782440,0.014326,69827.0,69819.0,0.14332]
[1771080782737,0.014327,69821.0,69807.0,0.22256719]
[1771080782943,0.014326,69825.0,69808.0,0.23689619]
[1771080783142,0.014326,69826.0,69813.0,0.014328]
[1771080783438,0.158641,69825.0,69814.0,0.01444]
[1771080783744,0.01444,69827.0,69816.0,0.22256719]
[1771080784043,0.01444,69827.0,69817.0,0.014328]
[1771080784338,0.01444,69827.0,69816.0,0.22256719]
[1771080784339,0.158641,69822.0,69816.0,0.01444]
[1771080784538,0.014326,69825.0,69808.0,0.22256719]
[1771080784836,0.158641,69823.0,69809.0,0.15776]
[1771080785033,0.014327,69821.0,69809.0,0.172089]
[1771080785234,0.014327,69821.0,69809.0,0.15776]
[1771080785433,0.158641,69820.0,69809.0,0.15776]
[1771080785640,0.158641,69820.0,69809.0,0.172089]
[1771080785839,0.158641,69819.0,69809.0,0.39465619]
[1771080786136,0.014327,69822.0,69809.0,0.38032719]
[1771080786336,0.158641,69820.0,69809.0,0.23689619]
[1771080786643,0.014326,69826.0,69810.0,0.172089]
[1771080786941,0.158641,69822.0,69810.0,0.186418]
[1771080787242,0.014326,69824.0,69811.0,0.014329]
[1771080787443,0.158641,69821.0,69811.0,0.014329]
[1771080787635,0.014326,69823.0,69810.0,0.172089]
[1771080787836,0.01444,69823.0,69810.0,0.15776]
[1771080788133,0.014327,69822.0,69810.0,0.15776]
[1771080788438,0.158641,69816.0,69811.0,0.014329]
[1771080788741,0.158641,69816.0,69810.0,0.15776]
[1771080789043,0.028766,69823.0,69809.0,0.014329]
[1771080789044,0.014327,69821.0,69809.0,0.014329]
[1771080789238,0.014326,69824.0,69810.0,0.23700719]
[1771080789441,0.158641,69819.0,69812.0,0.014329]
[1771080789636,0.01444,69825.0,69812.0,0.23689619]
[1771080789836,0.01444,69825.0,69814.0,0.014328]
[1771080790140,0.01444,69825.0,69815.0,0.01444]
[1771080790744,0.01444,69825.0,69818.0,0.014327]
[1771080791038,0.01444,69825.0,69816.0,0.014328]
[1771080791245,0.014325,69832.0,69816.0,0.014328]
[1771080791542,0.01444,69831.0,69819.0,0.014327]
[1771080792040,0.01444,69831.0,69821.0,0.014327]
[1771080792345,0.01444,69831.0,69823.0,0.014326]
[1771080792739,0.01444,69831.0,69825.0,0.014326]
[1771080793242,0.01444,69831.0,69819.0,0.01444]
[1771080793243,0.22124446,69832.0,69807.0,0.22256719]
[1771080793544,0.14332,69840.0,69810.0,0.014329]
[1771080793545,0.014326,69827.0,69810.0,0.014329]
[1771080793839,0.014327,69819.0,69809.0,0.22256719]
[1771080794047,0.014327,69820.0,69808.0,0.172089]
[1771080794236,0.014327,69820.0,69809.0,0.014329]
[1771080794432,0.22124446,69825.0,69808.0,0.15776]
[1771080794638,0.014327,69821.0,69809.0,0.172089]
[1771080794940,0.014327,69821.0,69810.0,0.172089]
[1771080795242,0.014327,69821.0,69811.0,0.01444]
[1771080795441,0.014327,69822.0,69812.0,0.01444]
[1771080795744,0.014326,69824.0,69814.0,0.014328]
[1771080795946,0.014327,69820.0,69815.0,0.01444]
[1771080796246,0.014326,69825.0,69815.0,0.01444]
[1771080796444,0.014326,69824.0,69815.0,0.01444]
[1771080797046,0.014327,69822.0,69815.0,0.01444]
[1771080797247,0.014326,69824.0,69815.0,0.01444]
[1771080797745,0.014326,69823.0,69815.0,0.01444]
[1771080797945,0.01444,69827.0,69815.0,0.01444]
[1771080798448,0.014326,69826.0,69815.0,0.028768]
[1771080798637,0.014326,69826.0,69811.0,0.014329]
[1771080798840,0.01444,69827.0,69816.0,0.014328]
[1771080799145,0.01444,69827.0,69817.0,0.014327]
[1771080799345,0.014326,69826.0,69815.0,0.028768]
[1771080799546,0.014326,69826.0,69813.0,0.014328]
[1771080799547,0.014326,69825.0,69814.0,0.014328]
[1771080799743,0.014326,69824.0,69815.0,0.01444]
[1771080799948,0.014326,69823.0,69812.0,0.028769]
[1771080800149,0.014326,69824.0,69812.0,0.028769]
[1771080800450,0.014326,69824.0,69813.0,0.014328]
[1771080800949,0.028766,69827.0,69812.0,0.028769]
[1771080801246,0.014326,69826.0,69812.0,0.01444]
[1771080801448,0.23568446,69827.0,69812.0,0.028769]
[1771080801643,0.01444,69827.0,69813.0,0.014328]
[1771080801843,0.01444,69827.0,69814.0,0.014328]
[1771080802451,0.01444,69827.0,69813.0,0.014328]
[1771080802747,0.028766,69827.0,69813.0,0.014328]
[1771080802940,0.014327,69822.0,69812.0,0.01444]
[1771080803149,0.014327,69822.0,69813.0,0.01444]
[1771080803345,0.014327,69821.0,69814.0,0.01444]
[1771080803746,0.014327,69822.0,69814.0,0.01444]
[1771080803943,0.014327,69822.0,69811.0,0.14332]
[1771080804150,0.014327,69820.0,69808.0,0.14332]
[1771080804447,0.22124446,69819.0,69802.0,0.014331]
[1771080804644,0.22124446,69818.0,69803.0,0.01444]
[1771080804849,0.22124446,69818.0,69806.0,0.01433]
[1771080805045,0.23557246,69818.0,69807.0,0.01444]
[1771080805246,0.014328,69817.0,69807.0,0.01444]
[1771080805953,0.014328,69815.0,69805.0,0.01444]
[1771080806147,0.043096,69815.0,69805.0,0.01444]
[1771080806452,0.01444,69815.0,69811.0,0.014329]
[1771080806750,0.14332,69821.0,69812.0,0.014329]
[1771080806950,0.14332,69821.0,69810.0,0.028769]
[1771080806951,0.01444,69820.0,69813.0,0.014328]
[1771080807148,0.14332,69830.0,69815.0,0.23689519]
[1771080807346,0.01444,69829.0,69815.0,0.23689519]
[1771080807541,0.01444,69829.0,69818.0,0.014327]
[1771080807745,0.22124446,69847.0,69828.0,0.22256719]
[1771080807948,0.22124446,69847.0,69836.0,0.014324]
[1771080807949,0.01444,69846.0,69836.0,0.014324]
[1771080808147,0.01444,69846.0,69834.0,0.014324]
[1771080808148,0.23568446,69846.0,69834.0,0.014324]
[1771080808455,0.22124446,69833.0,69823.0,0.01444]
[1771080808653,0.22124446,69833.0,69822.0,0.014327]
[1771080808955,0.014324,69835.0,69823.0,0.01444]
[1771080809143,0.01444,69840.0,69823.0,0.01444]
[1771080809343,0.014324,69837.0,69823.0,0.01444]
[1771080809545,0.22124446,69838.0,69823.0,0.01444]
[1771080809546,0.23556846,69838.0,69823.0,0.01444]
[1771080809757,0.014324,69834.0,69819.0,0.14332]
[1771080809946,0.028764,69833.0,69820.0,0.01444]
[1771080810256,0.014325,69832.0,69820.0,0.01444]
[1771080810648,0.25000846,69833.0,69820.0,0.01444]
[1771080811344,0.25000846,69833.0,69818.0,0.014327]
[1771080811548,0.25000846,69833.0,69819.0,0.01444]
[1771080812049,0.014325,69832.0,69819.0,0.01444]
[1771080812251,0.014322,69847.0,69819.0,0.22368174]
[1771080812458,0.014323,69839.0,69824.0,0.014326]
[1771080812955,0.028763,69838.0,69824.0,0.014326]
[1771080813155,0.14332,69840.0,69829.0,0.014325]
[1771080813357,0.01444,69842.0,69835.0,0.014324]
[1771080814353,0.20477523,69845.0,69833.0,0.01444]
[1771080814558,0.14332,69855.0,69833.0,0.01444]
[1771080814559,0.01444,69849.0,69841.0,0.014323]
[1771080814858,0.01444,69849.0,69842.0,0.014322]
[1771080815043,0.01444,69849.0,69838.0,0.20924174]
[1771080815251,0.01444,69849.0,69841.0,0.014323]
[1771080815657,0.01444,69849.0,69842.0,0.014323]
[1771080815857,0.01444,69849.0,69843.0,0.014322]
[1771080816159,0.14332,69855.0,69844.0,0.014322]
[1771080816456,0.014319,69861.0,69844.0,0.014322]
[1771080816654,0.03016375,69866.0,69855.0,0.20924174]
[1771080816857,0.20477523,69873.0,69856.0,0.028759]
[1771080817055,0.14332,69895.0,69873.0,0.20924174]
[1771080817361,0.20477523,69884.0,69862.0,0.20924174]
[1771080817554,0.20477523,69882.0,69867.0,0.014317]
[1771080817755,0.20477523,69882.0,69870.0,0.014317]
[1771080818055,0.21908823,69887.0,69870.0,0.014317]
[1771080818254,0.20477523,69879.0,69856.0,0.20924174]
[1771080818454,0.20477523,69879.0,69857.0,0.01444]
[1771080818455,0.21909223,69869.0,69857.0,0.01444]
[1771080818652,0.20477523,69863.0,69842.0,0.20924174]
[1771080818961,0.21909423,69858.0,69843.0,0.01444]
[1771080819153,0.02864,69856.0,69843.0,0.01444]
[1771080819355,0.02864,69856.0,69821.0,0.014327]
[1771080819356,0.014322,69844.0,69825.0,0.22356774]
[1771080819655,0.15772,69843.0,69828.0,0.014325]
[1771080820058,0.172042,69843.0,69828.0,0.014325]
[1771080820260,0.14403548,69841.0,69826.0,0.01444]
[1771080820457,0.15772,69843.0,69826.0,0.01444]
[1771080820651,0.14328,69843.0,69830.0,0.20924174]
[1771080820851,0.20477523,69854.0,69830.0,0.20924174]
[1771080820852,0.01444,69845.0,69839.0,0.014323]
[1771080821549,0.01444,69869.0,69851.0,0.21873195]
[1771080821860,0.01444,69868.0,69851.0,0.01444]
[1771080822360,0.014318,69864.0,69851.0,0.01444]
[1771080822657,0.01444,69863.0,69851.0,0.01444]
[1771080822956,0.35857716,69865.0,69854.0,0.01432]
[1771080823161,0.14328,69865.0,69854.0,0.01432]
[1771080823454,0.14403548,69863.0,69852.0,0.01432]
[1771080823760,0.01444,69862.0,69853.0,0.01432]
[1771080823966,0.01444,69862.0,69855.0,0.01432]